fUST/lending_fUST_20250818
["ID","MTS","AMOUNT","RATE_DAILY","PERIOD"]
[379955745,1755448260405,-1139.38,0.00024109,2]
[379955747,1755448260420,-562.78,0.00024109,2]
[379955749,1755448260430,-556.15,0.00024109,2]
[379955751,1755448260439,-2039.25,0.00024109,2]
[379955753,1755448260448,-3508.85,0.00024109,2]
[379955755,1755448260457,-1134.0,0.00024109,2]
[379955757,1755448260467,-833.33,0.00024109,2]
[379955759,1755448260476,-1081.66,0.00024109,2]
[379955761,1755448260486,-2152.56,0.00024109,2]
[379955763,1755448260497,-1161.151632,0.0002411,2]
[379955765,1755448260506,-320.5981957,0.0002411,2]
[379955767,1755448260515,-1160.9511756,0.0002411,2]
[379955769,1755448260524,-293.7943279,0.0002411,2]
[379955771,1755448260534,-153.0,0.0002411,2]
[379955773,1755448260545,-1507.0,0.0002411,2]
[379955775,1755448260555,-250.0,0.00024121,2]
[379955777,1755448260564,-250.0,0.00024121,2]
[379955779,1755448260574,-3000.0,0.0002414,2]
[379955781,1755448260583,-293.7943279,0.00024155,2]
[379955783,1755448260593,-293.7943279,0.00024155,2]
[379955785,1755448260602,-293.7943279,0.00024155,2]
[379955787,1755448260612,-293.7943279,0.00024155,2]
[379955789,1755448260621,-293.7943279,0.00024155,2]
[379955791,1755448260630,-293.7943279,0.00024155,2]
[379955793,1755448260640,-1001.21322098,0.00024164,2]
[379955795,1755448260650,-256.0,0.00024164,7]
[379955797,1755448260659,-293.7943279,0.00024179,2]
[379955799,1755448260668,-293.7943279,0.00024179,2]
[379955801,1755448260678,-293.7943279,0.00024179,2]
[379955803,1755448260687,-293.7943279,0.00024179,2]
[379955805,1755448260696,-293.7943279,0.00024179,2]
[379955807,1755448260705,-293.7943279,0.00024179,2]
[379955809,1755448260715,-293.7943279,0.00024179,2]
[379955811,1755448260723,-293.7943279,0.00024179,2]
[379955813,1755448260733,-293.7943279,0.00024179,2]
[379955815,1755448260742,-306.0,0.0002418,2]
[379955817,1755448260751,-153.0,0.0002418,2]
[379955819,1755448260761,-11514.83412447,0.00024191,2]
[379955821,1755448260770,-700.0,0.00024196,2]
[379955823,1755448260780,-202.68736873,0.00024199,2]
[379955825,1755448260789,-55799.86,0.000242,2]
[379955827,1755448260799,-8188.31,0.000243,7]
[379955829,1755448260808,-306.0,0.00024301,2]
[379955831,1755448260818,-860.0,0.00024325,2]
[379955833,1755448260827,-583.97459403,0.00024383,2]
[379955835,1755448260836,-3448.83,0.00024383,2]
[379955837,1755448260845,-4387.99,0.00024383,2]
[379955838,1755448260854,-872.21,0.00024383,2]
[379955840,1755448260863,-818.67,0.00024383,2]
[379955842,1755448260872,-480.0,0.00024383,2]
[379955844,1755448260882,-518.22,0.00024383,2]
[379955846,1755448260891,-2455.91,0.00024383,2]
[379955848,1755448260900,-647.76,0.00024383,2]
[379955850,1755448260909,-1139.38,0.00024383,2]
[379955852,1755448260919,-562.78,0.00024383,2]
[379955854,1755448260928,-556.15,0.00024383,2]
[379955858,1755448260948,-2039.25,0.00024383,2]
[379955860,1755448260958,-3508.85,0.00024383,2]
[379955862,1755448260968,-833.33,0.00024383,2]
[379955864,1755448260977,-1134.0,0.00024383,2]
[379955866,1755448260987,-1081.66,0.00024383,2]
[379955868,1755448260997,-2152.56,0.00024383,2]
[379955870,1755448261007,-1507.0,0.00024384,2]
[379955872,1755448261016,-12834.05187528,0.00024429,2]
[379955874,1755448261025,-500.0,0.00024479,2]
[379955876,1755448261035,-659.91773548,0.000245,2]
[379955878,1755448261045,-311.0,0.000245,30]
[379955880,1755448261054,-279.58,0.00024505,30]
[379955882,1755448261064,-157.081155,0.0002454,2]
[379955884,1755448261073,-151.903182,0.0002454,2]
[379955886,1755448261082,-450.0,0.00024568,2]
[379955888,1755448261091,-4545.91757428,0.00024604,2]
[379955890,1755448261101,-1909.91714517,0.00024604,2]
[379955892,1755448261110,-3602.4085342,0.00024604,2]
[379955894,1755448261120,-1618.96301526,0.00024635,2]
[379955896,1755448261130,-674.07,0.00024643,2]
[379955898,1755448261140,-504.42086076,0.0002465,2]
[379955900,1755448261149,-441907.66947905,0.0002465,2]
[379955902,1755448261159,-3448.83,0.00024657,2]
[379955904,1755448261168,-4387.99,0.00024657,2]
[379955906,1755448261177,-872.21,0.00024657,2]
[379955908,1755448261187,-818.67,0.00024657,2]
[379955910,1755448261196,-378.04269695,0.00024657,2]
[379955912,1755448261205,-518.22,0.00024657,2]
[379955914,1755448261214,-2455.91,0.00024657,2]
[379955916,1755448261224,-647.76,0.00024657,2]
[379955918,1755448261233,-1139.38,0.00024657,2]
[379955920,1755448261243,-562.78,0.00024657,2]
[379955922,1755448261252,-556.15,0.00024657,2]
[379955923,1755448261262,-2039.25,0.00024657,2]
[379955925,1755448261271,-3508.85,0.00024657,2]
[379955927,1755448261280,-833.33,0.00024657,2]
[379955929,1755448261289,-1134.0,0.00024657,2]
[379955931,1755448261300,-1081.66,0.00024657,2]
[379955934,1755448261310,-2152.56,0.00024657,2]
[379955936,1755448261320,-200.0,0.00024658,15]
[379955938,1755448261330,-380.0,0.00024658,2]
[379955940,1755448261342,-200.0,0.00024658,2]
[379955942,1755448261351,-312.153572,0.00024658,7]
[379955944,1755448261360,-312.153572,0.00024658,7]
[379955946,1755448261370,-312.153572,0.00024658,7]
[379955948,1755448261380,-312.153572,0.00024658,7]
[379955950,1755448261390,-312.153572,0.00024658,7]
[379955952,1755448261399,-312.153572,0.00024658,7]
[379955954,1755448261409,-312.153572,0.00024658,7]
[379955956,1755448261421,-312.153572,0.00024658,7]
[379955958,1755448261430,-312.153572,0.00024658,7]
[379955960,1755448261440,-312.153572,0.00024658,7]
[379955962,1755448261449,-312.153572,0.00024658,7]
[379955964,1755448261458,-312.153572,0.00024658,7]
[379955966,1755448261469,-312.153572,0.00024658,7]
[379955968,1755448261478,-312.153572,0.00024658,7]
[379955970,1755448261487,-312.153572,0.00024658,7]
[379955972,1755448261497,-312.153572,0.00024658,7]
[379955974,1755448261506,-312.153572,0.00024658,7]
[379955976,1755448261516,-312.153572,0.00024658,7]
[379955978,1755448261526,-312.153572,0.00024658,7]
[379955980,1755448261535,-312.153579,0.00024658,7]
[379955982,1755448261546,-1507.0,0.00024658,2]
[379955984,1755448261556,-151.30590251,0.00024658,2]
[379955986,1755448261565,-500.0,0.00024658,2]
[379955988,1755448261575,-151.903182,0.0002466,15]
[379955990,1755448261585,-350.0,0.00024668,2]
[379955992,1755448261596,-350.0,0.00024668,2]
[379955994,1755448261606,-500.0,0.0002468,2]
[379955996,1755448261616,-3500.0,0.00024688,2]
[379955998,1755448261626,-163.11,0.000247,7]
[379956000,1755448261636,-11131.59102156,0.000247,7]
[379956002,1755448261645,-3062.0,0.00024704,2]
[379956004,1755448261655,-16516.89138995,0.00024774,2]
[379956006,1755448261665,-158.41668463,0.00024873,2]
[379956008,1755448261674,-960.0,0.00024873,2]
[379956010,1755448261683,-250.0,0.000249,2]
[379956012,1755448261692,-250.7,0.000249,2]
[379956014,1755448261702,-306995.46340378,0.000249,2]
[379956030,1755448261843,-258048.04748795,0.000249,2]
[379956032,1755448261855,-53261.19358127,0.000249,2]
[379956034,1755448261864,-3448.83,0.00024931,2]
[379956036,1755448261873,-4387.99,0.00024931,2]
[379956038,1755448261883,-872.21,0.00024931,2]
[379956040,1755448261892,-818.67,0.00024931,2]
[379956042,1755448261901,-518.22,0.00024931,2]
[379956044,1755448261911,-2455.91,0.00024931,2]
[379956046,1755448261920,-647.76,0.00024931,2]
[379956048,1755448261930,-1139.38,0.00024931,2]
[379956050,1755448261939,-562.78,0.00024931,2]
[379956052,1755448261949,-556.15,0.00024931,2]
[379956054,1755448261959,-2039.25,0.00024931,2]
[379956056,1755448261969,-3508.85,0.00024931,2]
[379956058,1755448261979,-833.33,0.00024931,2]
[379956060,1755448261988,-1134.0,0.00024931,2]
[379956062,1755448261999,-1081.66,0.00024931,2]
[379956064,1755448262008,-2152.56,0.00024931,2]
[379956066,1755448262018,-153.0,0.00024932,2]
[379956068,1755448262028,-153.0,0.00024932,2]
[379956070,1755448262044,-153.0,0.00024932,2]
[379956072,1755448262054,-153.0,0.00024932,2]
[379956074,1755448262064,-153.0,0.00024932,2]
[379956076,1755448262074,-153.0,0.00024932,2]
[379956078,1755448262083,-153.0,0.00024932,2]
[379956080,1755448262092,-153.0,0.00024932,2]
[379956082,1755448262103,-153.0,0.00024932,2]
[379956084,1755448262114,-1507.0,0.00024932,2]
[379956086,1755448262124,-500.0,0.00024932,2]
[379956088,1755448262134,-204.69968125,0.00024933,2]
[379956090,1755448262146,-12629.35219403,0.00024933,2]
[379956092,1755448262157,-11514.83412447,0.0002494,2]
[379956094,1755448262167,-155.95094814,0.00024943,7]
[379956096,1755448262177,-166.15,0.00024943,7]
[379956098,1755448262187,-1335.79,0.00024949,2]
[379956100,1755448262196,-72068.65999297,0.00024975,10]
[379956103,1755448262208,-151534.46549853,0.00024975,10]
[379956105,1755448262217,-321.5711078,0.00024976,2]
[379956107,1755448262229,-207.25,0.0002498,7]
[379956108,1755448262246,-1033.73195775,0.00024986,2]
[379956110,1755448262255,-818.71291336,0.00025,30]
[379956123,1755448262380,-40000.0,0.00025,2]
[379956125,1755448262390,-10364.0,0.00025,2]
[379956127,1755448262400,-110129.04231841,0.00025,2]
[379956129,1755448262409,-200.0,0.00025,7]
[379956131,1755448262420,-630.36359141,0.00025,30]
[379956133,1755448262429,-472.21534553,0.00025,30]
[379956135,1755448262439,-234.62849591,0.00025,30]
[379956137,1755448262448,-28152.78,0.00025,7]
[379956139,1755448262458,-12682.46447135,0.00025,10]
[379956141,1755448262468,-1998.540007,0.00025,5]
[379956143,1755448262479,-160.0,0.00025,10]
[379956145,1755448262488,-528.48506731,0.00025,10]
[379956147,1755448262497,-216.83204348,0.00025,10]
[379956149,1755448262507,-215.71995163,0.00025,10]
[379956151,1755448262517,-160.0,0.00025,10]
[379956153,1755448262526,-168.59153058,0.00025,5]
[379956155,1755448262536,-232.1512529,0.00025,10]
[379956157,1755448262547,-843.71309931,0.00025,10]
[379956159,1755448262557,-203.811104,0.00025,2]
[379956161,1755448262567,-417.15472785,0.00025,10]
[379956163,1755448262578,-4000.0,0.00025,4]
[379956165,1755448262587,-375.77065697,0.00025,10]
[379956167,1755448262596,-321.5711078,0.00025019,2]
[379956169,1755448262605,-160.7855539,0.00025019,2]
[379956171,1755448262615,-500.0,0.00025027,2]
[379956172,1755448262623,-1352.76072179,0.00025037,81]
[379956174,1755448262633,-207.25,0.0002508,7]
[379956176,1755448262642,-600.0,0.00025116,2]
[379956178,1755448262651,-166.15,0.00025123,7]
[379956179,1755448262660,-155.21,0.00025164,7]
[379956181,1755448262670,-207.25,0.0002518,7]
[379956183,1755448262680,-1000.0,0.000252,2]
[379956185,1755448262689,-1000.0,0.000252,2]
[379956187,1755448262699,-1000.0,0.000252,2]
[379956188,1755448262708,-1000.0,0.000252,2]
[379956190,1755448262718,-1000.0,0.000252,2]
[379956192,1755448262729,-155.2,0.00025201,7]
[379956194,1755448262739,-3448.83,0.00025205,2]
[379956195,1755448262750,-4387.99,0.00025205,2]
[379956197,1755448262760,-872.21,0.00025205,2]
[379956199,1755448262770,-818.67,0.00025205,2]
[379956201,1755448262780,-518.22,0.00025205,2]
[379956203,1755448262790,-2455.91,0.00025205,2]
[379956204,1755448262801,-647.76,0.00025205,2]
[379956206,1755448262810,-1139.38,0.00025205,2]
[379956208,1755448262820,-562.78,0.00025205,2]
[379956209,1755448262829,-556.15,0.00025205,2]
[379956211,1755448262839,-2039.25,0.00025205,2]
[379956213,1755448262850,-3508.85,0.00025205,2]
[379956215,1755448262860,-833.33,0.00025205,2]
[379956217,1755448262870,-1134.0,0.00025205,2]
[379956218,1755448262881,-1081.66,0.00025205,2]
[379956220,1755448262892,-2152.56,0.00025205,2]
[379956222,1755448262903,-1507.0,0.00025206,2]
[379956224,1755448262915,-500.0,0.00025206,2]
[379956226,1755448262927,-450.0,0.00025216,2]
[379956227,1755448262937,-338.94134954,0.00025216,2]
[379956229,1755448262950,-166.15,0.00025223,7]
[379956231,1755448262959,-397.0,0.0002523,12]
[379956233,1755448262969,-1940.72262656,0.00025236,2]
[379956234,1755448262978,-207.25,0.0002528,7]
[379956236,1755448262987,-700.0,0.00025292,2]
[379956238,1755448262997,-55799.86,0.000253,2]
[379956240,1755448263007,-1000.0,0.000253,2]
[379956241,1755448263017,-155.2,0.00025301,7]
[379956243,1755448263027,-166.16586478,0.00025323,7]
[379956245,1755448263037,-207.25,0.0002538,7]
[379956247,1755448263048,-8188.31,0.000254,7]
[379956249,1755448263059,-155.2,0.00025401,7]
[379956251,1755448263069,-1060.0,0.00025421,2]
[379956253,1755448263079,-12834.05187528,0.00025436,3]
[379956254,1755448263089,-900.0,0.00025469,3]
[379956256,1755448263099,-3448.98476897,0.00025479,2]
[379956258,1755448263109,-4388.09955311,0.00025479,2]
[379956260,1755448263119,-872.30584977,0.00025479,2]
[379956262,1755448263129,-818.85651036,0.00025479,2]
[379956263,1755448263140,-518.23411631,0.00025479,2]
[379956265,1755448263149,-2455.97437086,0.00025479,2]
[379956267,1755448263159,-647.9432187,0.00025479,2]
[379956269,1755448263168,-1139.5168575,0.00025479,2]
[379956270,1755448263179,-562.78436017,0.00025479,2]
[379956272,1755448263189,-556.2758523,0.00025479,2]
[379956274,1755448263200,-2039.27762099,0.00025479,2]
[379956276,1755448263209,-3508.86267092,0.00025479,2]
[379956278,1755448263222,-833.41,0.00025479,2]
[379956280,1755448263232,-1134.23859013,0.00025479,2]
[379956282,1755448263242,-1081.68655159,0.00025479,2]
[379956284,1755448263253,-2152.70888617,0.00025479,2]
[379956285,1755448263263,-1507.0,0.0002548,2]
[379956287,1755448263277,-500.0,0.0002548,2]
[379956289,1755448263288,-207.25,0.0002548,7]
[379956291,1755448263301,-155.2,0.00025501,7]
[379956292,1755448263312,-1000.0,0.00025521,20]
[379956294,1755448263323,-153.0,0.0002555,2]
[379956296,1755448263334,-153.0,0.0002555,2]
[379956298,1755448263354,-153.0,0.0002555,2]
[379956300,1755448263373,-500.0,0.00025575,2]
[379956302,1755448263387,-207.25,0.0002558,7]
[379956303,1755448263400,-1379.91683677,0.000256,2]
[379956305,1755448263410,-155.2,0.00025601,7]
[379956307,1755448263420,-293.45585942,0.00025616,17]
[379956309,1755448263431,-750.0,0.00025664,2]
[379956311,1755448263441,-207.25,0.0002568,7]
[379956312,1755448263450,-11514.83412447,0.00025688,2]
[379956314,1755448263460,-155.2,0.00025701,7]
[379956315,1755448263470,-151.903182,0.0002574,15]
[379956317,1755448263480,-1507.0,0.00025754,2]
[379956319,1755448263490,-500.0,0.00025754,2]
[379956321,1755448263499,-5000.0,0.00025761,3]
[379956323,1755448263510,-550.0,0.00025764,2]
[379956325,1755448263520,-250.0,0.00025775,7]
[379956326,1755448263529,-207.25,0.0002578,7]
[379956328,1755448263540,-160.7855539,0.00025798,2]
[379956330,1755448263552,-160.7855539,0.00025798,2]
[379956332,1755448263561,-400.06,0.000258,10]
[379956334,1755448263577,-163.11,0.000258,7]
[379956336,1755448263588,-155.2,0.00025801,7]
[379956337,1755448263597,-1526.61,0.00025873,2]
[379956339,1755448263608,-207.25,0.0002588,7]
[379956341,1755448263618,-155.2,0.00025901,7]
[379956343,1755448263628,-12834.05187528,0.00025939,4]
[379956345,1755448263637,-1160.0,0.00025969,2]
[379956347,1755448263648,-207.25,0.0002598,7]
[379956348,1755448263658,-47153.24347088,0.00026,2]
[379956350,1755448263667,-12216.84467871,0.00026,15]
[379956352,1755448263677,-19900.0,0.00026,2]
[379956354,1755448263687,-10186.95917776,0.00026,2]
[379956356,1755448263698,-161.0,0.00026,5]
[379956357,1755448263707,-277.79114126,0.00026,2]
[379956359,1755448263716,-160.0,0.00026,3]
[379956361,1755448263726,-33922.10656809,0.00026,7]
[379956363,1755448263736,-12682.46447135,0.00026,30]
[379956365,1755448263746,-28152.78,0.00026,7]
[379956366,1755448263755,-12682.46447135,0.00026,3]
[379956368,1755448263767,-160.0,0.00026,30]
[379956370,1755448263776,-160.0,0.00026,3]
[379956372,1755448263786,-528.48506731,0.00026,30]
[379956374,1755448263797,-528.48506731,0.00026,3]
[379956375,1755448263806,-216.83204348,0.00026,30]
[379956377,1755448263816,-216.83204348,0.00026,3]
[379956379,1755448263826,-215.71995163,0.00026,30]
[379956381,1755448263837,-215.71995163,0.00026,3]
[379956383,1755448263847,-160.0,0.00026,30]
[379956384,1755448263857,-160.0,0.00026,3]
[379956386,1755448263866,-160.0,0.00026,3]
[379956388,1755448263877,-66150.00000082,0.00026,30]
[379956390,1755448263887,-232.1512529,0.00026,30]
[379956392,1755448263897,-843.71309931,0.00026,30]
[379956393,1755448263907,-232.1512529,0.00026,3]
[379956395,1755448263917,-843.71309931,0.00026,3]
[379956397,1755448263928,-160.0,0.00026,30]
[379956399,1755448263938,-160.0,0.00026,3]
[379956401,1755448263948,-417.15472785,0.00026,30]
[379956402,1755448263959,-417.15472785,0.00026,3]
[379956404,1755448263969,-375.77065697,0.00026,30]
[379956406,1755448263980,-375.77065697,0.00026,3]
[379956408,1755448263991,-155.2,0.00026001,7]
[379956410,1755448264002,-1507.0,0.00026027,2]
[379956411,1755448264012,-500.0,0.00026028,2]
[379956413,1755448264021,-150.0,0.00026045,30]
[379956415,1755448264031,-207.25,0.0002608,7]
[379956417,1755448264041,-620.23917465,0.00026086,7]
[379956419,1755448264059,-1362.00196128,0.00026091,16]
[379956420,1755448264069,-155.2,0.00026101,7]
[379956422,1755448264079,-500.0,0.00026123,2]
[379956424,1755448264090,-191.25329636,0.0002616,2]
[379956426,1755448264100,-207.25,0.0002618,7]
[379956428,1755448264111,-155.2,0.00026201,7]
[379956430,1755448264121,-600.70757288,0.00026212,2]
[379956431,1755448264131,-207.25,0.0002628,7]
[379956433,1755448264140,-155.2,0.00026301,7]
[379956435,1755448264151,-1507.0,0.00026301,2]
[379956437,1755448264161,-500.0,0.00026302,2]
[379956439,1755448264171,-650.0,0.00026312,2]
[379956440,1755448264180,-152.62967722,0.00026352,16]
[379956442,1755448264191,-207.25,0.0002638,7]
[379956444,1755448264201,-55799.86,0.000264,2]
[379956446,1755448264211,-155.2,0.00026401,7]
[379956448,1755448264221,-11514.83412447,0.00026437,2]
[379956450,1755448264231,-12834.05187528,0.00026443,5]
[379956452,1755448264242,-207.25,0.0002648,7]
[379956453,1755448264253,-8188.31,0.000265,7]
[379956455,1755448264263,-155.2,0.00026501,7]
[379956457,1755448264273,-1260.0,0.00026517,2]
[379956459,1755448264283,-1507.0,0.00026575,2]
[379956461,1755448264295,-500.0,0.00026576,2]
[379956462,1755448264306,-207.25,0.0002658,7]
[379956464,1755448264316,-155.2,0.00026601,7]
[379956466,1755448264327,-214.50375535,0.00026671,2]
[379956468,1755448264342,-514.703906,0.00026676,2]
[379956470,1755448264355,-207.25,0.0002668,7]
[379956471,1755448264365,-155.2,0.00026701,7]
[379956473,1755448264377,-634.5985,0.00026712,2]
[379956475,1755448264388,-500.0,0.00026775,2]
[379956477,1755448264398,-1500.0,0.00026776,2]
[379956479,1755448264408,-207.25,0.0002678,7]
[379956480,1755448264422,-500.0,0.00026795,2]
[379956482,1755448264432,-1717.44,0.00026797,2]
[379956484,1755448264442,-1010.99,0.000268,60]
[379956486,1755448264451,-155.2,0.00026801,7]
[379956488,1755448264461,-500.0,0.00026811,2]
[379956489,1755448264471,-151.903182,0.0002682,15]
[379956491,1755448264480,-500.0,0.00026839,2]
[379956493,1755448264490,-1507.0,0.00026849,2]
[379956495,1755448264500,-500.0,0.0002685,2]
[379956497,1755448264511,-500.0,0.00026855,2]
[379956499,1755448264521,-535.21755169,0.0002686,2]
[379956500,1755448264530,-207.25,0.0002688,7]
[379956502,1755448264540,-500.0,0.00026887,2]
[379956504,1755448264553,-163.11,0.000269,7]
[379956506,1755448264562,-155.2,0.00026901,7]
[379956508,1755448264572,-1500.0,0.00026906,2]
[379956510,1755448264581,-1000.0,0.00026911,2]
[379956511,1755448264591,-1000.0,0.00026935,2]
[379956513,1755448264603,-12834.05187528,0.00026946,6]
[379956515,1755448264613,-1500.0,0.00026952,2]
[379956517,1755448264622,-499.3,0.00026974,2]
[379956519,1755448264632,-207.25,0.0002698,7]
[379956521,1755448264641,-464696.11984348,0.00027,2]
[379956523,1755448264655,-4390.0,0.00027,2]
[379956540,1755448264851,-480.0,0.00019178,2]
[379956542,1755448264860,-290.00312792,0.00019178,2]
[379956544,1755448264870,-425.820561,0.0002,2]
[379956546,1755448264880,-151.0,0.000205,2]
[379956548,1755448264889,-151.0,0.000205,2]
[379956550,1755448264899,-425.820561,0.000205,2]
[379956551,1755448264909,-151.0,0.000205,2]
[379956553,1755448264918,-425.820561,0.000205,2]
[379956555,1755448264928,-425.820561,0.000205,2]
[379956557,1755448264938,-151.0,0.00021095,2]
[379956559,1755448264947,-425.820561,0.00021095,2]
[379956561,1755448264957,-151.0,0.00021643,2]
[379956563,1755448264967,-425.820561,0.00021643,2]
[379956564,1755448264976,-480.0,0.00021917,2]
[379956566,1755448264985,-151.0,0.00021945,7]
[379956568,1755448264995,-480.0,0.00022191,2]
[379956570,1755448265006,-256.05372524,0.00022465,2]
[379956572,1755448265015,-3997.40396533,0.00027,2]
[379956574,1755448265026,-358.74415968,0.00027,2]
[379956576,1755448265038,-25010.40554447,0.00027,2]
[379956578,1755448265053,-1547.32648704,0.00027,2]
[379956580,1755448265063,-466.93484942,0.00027,30]
[379956587,1755448265138,-480.0,0.00019178,2]
[379956589,1755448265147,-460.0,0.00019178,2]
[379956591,1755448265157,-500.0,0.00019178,2]
[379956593,1755448265167,-466.73548157,0.00019178,2]
[379956595,1755448265176,-425.820561,0.0002,2]
[379956596,1755448265185,-403.996327,0.0002,2]
[379956598,1755448265195,-425.820561,0.000205,2]
[379956600,1755448265204,-403.996327,0.000205,2]
[379956602,1755448265214,-425.820561,0.000205,2]
[379956604,1755448265223,-403.996327,0.000205,2]
[379956606,1755448265233,-425.820561,0.00021945,7]
[379956607,1755448265242,-425.820561,0.0002201,7]
[379956609,1755448265252,-425.820561,0.0002259,7]
[379956611,1755448265262,-425.820561,0.00023,7]
[379956613,1755448265271,-5607.53161943,0.00027,30]
[379956615,1755448265282,-72611.33371292,0.00027,30]
[379957567,1755448398964,500.329022,0.00013699,2]
[379957568,1755448443329,1446.32627322,0.00018371,2]
[379957569,1755448443354,3553.67372678,0.00018371,2]
[379957570,1755448459200,5000.0,0.00018371,2]
[379957571,1755448475043,1446.32627322,0.00018371,2]
[379957572,1755448475066,3553.67372678,0.00018371,2]
[379957578,1755448490993,5000.0,0.00018371,2]
[379957579,1755448510262,1446.32627322,0.00018371,2]
[379957581,1755448584646,-1107.0,0.00018371,2]
[379957582,1755448697231,5000.0,0.00018371,2]
[379957583,1755448714373,4066.97242812,0.00018371,2]
[379957584,1755448721469,941.351061,0.00027397,120]
[379957585,1755448766410,1000.0,0.00018216,2]
[379957586,1755448789154,1522.36232524,0.00027186,120]
[379957644,1755449021562,110818.2268101,0.00018156,2]
[379957645,1755449112064,196.027264,0.0001814,2]
[379957648,1755449195208,-315.97514,0.00018506,2]
[379957649,1755449195230,-130.17855234,0.00018598,2]
[379957694,1755449432299,-37.89285999,0.00018598,2]
[379957696,1755449432309,-177.58912712,0.00018616,2]
[379957698,1755449432319,-35.23102123,0.00018632,2]
[379957700,1755449432331,-154.29450166,0.00018632,2]
[379957702,1755449432341,-189.52552289,0.00018674,2]
[379957704,1755449432351,-457.493584,0.0001869,2]
[379957706,1755449432361,-189.52552289,0.00018716,2]
[379957707,1755449432371,-189.52552289,0.00018758,2]
[379957708,1755449432381,-189.52552289,0.000188,2]
[379957710,1755449432392,-1518.7130567,0.000189,2]
[379957712,1755449432402,-500.0,0.00019,2]
[379957715,1755449432412,-300.0,0.00019169,2]
[379957718,1755449432422,-1200.0,0.0001917,2]
[379957721,1755449432432,-500.0,0.0001917,2]
[379957724,1755449432442,-500.0,0.0001917,2]
[379957726,1755449432453,-500.0,0.0001917,2]
[379957728,1755449432462,-297.4213098,0.0001917,2]
[379957731,1755449432475,-202.5786902,0.0001917,2]
[379957733,1755449432486,-461.8613098,0.0001917,2]
[379957735,1755449432500,-38.1386902,0.0001917,2]
[379957737,1755449432510,-500.0,0.0001917,2]
[379957739,1755449432520,-500.0,0.0001917,2]
[379957741,1755449432530,-500.0,0.0001917,2]
[379957743,1755449432540,-500.0,0.0001917,2]
[379957745,1755449432550,-500.0,0.0001917,2]
[379957747,1755449432559,-500.0,0.0001917,2]
[379957750,1755449432570,-500.0,0.0001917,2]
[379957752,1755449432579,-500.0,0.0001917,2]
[379957754,1755449432589,-500.0,0.0001917,2]
[379957756,1755449432598,-500.0,0.0001917,2]
[379957758,1755449432608,-500.0,0.0001917,2]
[379957760,1755449432618,-500.0,0.0001917,2]
[379957762,1755449432629,-500.0,0.0001917,2]
[379957764,1755449432639,-396.76964763,0.0001917,2]
[379957766,1755449432649,-500.0,0.0001917,2]
[379957768,1755449432659,-494.61731419,0.0001917,2]
[379957770,1755449432670,-447.47435998,0.0001917,2]
[379957772,1755449432680,-500.0,0.0001917,2]
[379957774,1755449432689,-500.0,0.0001917,2]
[379957776,1755449432699,-253.52728827,0.0001917,2]
[379957778,1755449432711,-468.50360838,0.0001917,2]
[379957780,1755449432728,-500.0,0.0001917,2]
[379957783,1755449432739,-450.57787135,0.0001917,2]
[379957784,1755449432748,-500.0,0.0001917,2]
[379957787,1755449432759,-500.0,0.0001917,2]
[379957789,1755449432769,-373.89799678,0.0001917,2]
[379957791,1755449432779,-500.0,0.0001917,2]
[379957793,1755449432789,-500.0,0.0001917,2]